{"text_format":"1","workbook":"xlsx","n_sheets":1,"sheets":["SSA"],"not_rendered":{"charts":0,"images":0,"macros":1,"external_links":0,"defined_names":0,"comments":0,"pivot_tables":0},"unopened":[],"bounds":{"document_bytes":16777216,"sheet_cells":100000,"rows_first":2000,"rows_last":500,"rows_between":2000,"halvings":0,"cell_chars":16384,"cell_head_chars":4096},"cells_cut":0,"cells_raw":0,"read":"whole","date_system":"1900"}

{"sheet":"SSA","index":0,"n_rows":32,"n_cols":14,"rows_kept":32,"cut":false,"hidden":false,"merged":[[31,6,31,10],[2,1,2,12],[4,2,4,12],[6,1,7,1],[6,2,6,7],[6,11,6,12],[30,2,30,10]]}
[]
[]
[]
[]
[null,"Maßnahme:    "]
[]
[null,"Bewertungsaspekte","Werteskala*",null,null,null,null,null,"Meldung",null,"Gewicht","Gesamtwert"]
[null,null,0,1,2,3,4,5,null,null,null,"Soll","Ist"]
[null,null,null,null,null,null,null,null,{"$f":"IF(AND(B9=\"\",COUNT(C9:H9)>0),\"Bew.Aspekt ausfüllen!\",IF(B9=\"\",\"\",IF(COUNT(C9:H9)<1,\"bitte bewerten\",IF(COUNT(C9:H9)>1,\"falsch bewertet\",\"i.O.\"))))","v":""},{"$f":"C9+D9+E9+F9+G9+H9","v":0},null,{"$f":"K9*5","v":0},{"$f":"J9*K9","v":0}]
[null,null,null,null,null,null,null,null,{"$f":"IF(AND(B10=\"\",COUNT(C10:H10)>0),\"Bew.Aspekt ausfüllen!\",IF(B10=\"\",\"\",IF(COUNT(C10:H10)<1,\"bitte bewerten\",IF(COUNT(C10:H10)>1,\"falsch bewertet\",\"i.O.\"))))","v":""},{"$f":"C10+D10+E10+F10+G10+H10","v":0},null,{"$f":"K10*5","v":0},0]
[null,null,null,null,null,null,null,null,"",0,null,0,0]
[null,null,null,null,null,null,null,null,"",0,null,0,0]
[null,null,null,null,null,null,null,null,"",0,null,0,0]
[null,null,null,null,null,null,null,null,"",0,null,0,0]
[null,null,null,null,null,null,null,null,"",0,null,0,0]
[null,null,null,null,null,null,null,null,"",0,null,0,0]
[null,null,null,null,null,null,null,null,"",0,null,0,0]
[null,null,null,null,null,null,null,null,"",0,null,0,0]
[null,null,null,null,null,null,null,null,"",0,null,0,0]
[null,null,null,null,null,null,null,null,"",0,null,0,0]
[null,null,null,null,null,null,null,null,"",0,null,0,0]
[null,null,null,null,null,null,null,null,"",0,null,0,0]
[null,null,null,null,null,null,null,null,"",0,null,0,0]
[null,null,null,null,null,null,null,null,"",0,null,0,0]
[null,null,null,null,null,null,null,null,"",0,null,0,0]
[null,null,null,null,null,null,null,null,"",0,null,0,0]
[null,null,null,null,null,null,null,null,"",0,null,0,0]
[null,null,null,null,null,null,null,null,"",0,null,0,0]
[null,null,null,null,null,null,null,null,"",0,null,0,0]
[null,null,null,null,null,null,null,null,"",0,null,0,0]
[null,"* Geben Sie eine Zahl zwischen 0 und 5 ein.","gesamt absolut",null,null,null,null,null,null,null,null,{"$f":"SUM(L9:L30)","v":0},{"$f":"SUM(M9:M30)","v":0}]
[null,"* Hinweis: Je höher der Wert, desto besser die Bewertung.",null,null,null,null,"prozentual",null,null,null,null,1,{"$f":"IF(ISERROR(M31/L31),\"\",M31/L31)","v":""},{"$f":"IF(ISERROR(M31/L31*100),\"\",M31/L31*100)","v":""}]